fUST/lending_fUST_20251221
["ID","MTS","AMOUNT","RATE_DAILY","PERIOD"]
[399379606,1766324973698,-1312.9,0.00038718,120]
[399379609,1766324973744,-1312.99341873,0.00038718,120]
[399379610,1766324973795,-574.98,0.00038718,90]
[399379612,1766324973842,-574.98,0.00038718,90]
[399379615,1766324973890,-574.98,0.00038718,90]
[399379616,1766324973935,-574.98,0.00038718,90]
[399379618,1766324973983,-574.98,0.00038718,90]
[399379621,1766324974032,-574.98,0.00038718,90]
[399379622,1766324974078,-574.98,0.00038718,90]
[399379625,1766324974123,-574.98,0.00038718,90]
[399379626,1766324974169,-574.98,0.00038718,90]
[399379629,1766324974214,-574.98,0.00038718,90]
[399379630,1766324974257,-574.98,0.00038718,90]
[399379632,1766324974300,-574.98,0.00038718,90]
[399379634,1766324974338,-574.98,0.00038718,90]
[399379635,1766324974375,-574.98,0.00038718,90]
[399379636,1766324974412,-574.98,0.00038718,90]
[399379637,1766324974449,-574.98,0.00038718,90]
[399379638,1766324974484,-574.98,0.00038718,90]
[399379639,1766324974521,-574.98,0.00038718,90]
[399379640,1766324974559,-574.98,0.00038718,90]
[399379642,1766324974595,-574.98,0.00038718,90]
[399379644,1766324974630,-574.98,0.00038718,90]
[399379646,1766324974665,-574.98,0.00038718,90]
[399379648,1766324974699,-574.98,0.00038718,90]
[399379650,1766324974734,-575.16932084,0.00038718,90]
[399379656,1766324974938,-200.0,0.00038718,120]
[399379658,1766324974978,-200.0,0.00038718,120]
[399379660,1766324975017,-200.0,0.00038718,120]
[399379662,1766324975055,-200.0,0.00038718,120]
[399379664,1766324975092,-200.0,0.00038718,120]
[399379666,1766324975128,-200.0,0.00038718,120]
[399379668,1766324975165,-200.0,0.00038718,120]
[399379670,1766324975205,-200.0,0.00038718,120]
[399379672,1766324975246,-200.0,0.00038718,120]
[399379674,1766324975290,-200.0,0.00038718,120]
[399379677,1766324975334,-200.0,0.00038718,120]
[399379679,1766324975376,-200.0,0.00038718,120]
[399379680,1766324975417,-200.0,0.00038718,120]
[399379683,1766324975460,-200.0,0.00038718,120]
[399379685,1766324975501,-200.0,0.00038718,120]
[399379687,1766324975545,-200.0,0.00038718,120]
[399379688,1766324975589,-285.87191355,0.00038718,120]
[399379691,1766324975632,-500.0,0.00038718,120]
[399379693,1766324975676,-500.0,0.00038718,120]
[399379695,1766324975720,-307.23280916,0.00038718,120]
[399379697,1766324975767,-500.0,0.00038718,120]
[399379698,1766324975815,-500.0,0.00038718,120]
[399379700,1766324975863,-500.0,0.00038718,120]
[399379703,1766324975909,-500.0,0.00038718,120]
[399379705,1766324975952,-500.0,0.00038718,120]
[399379707,1766324975996,-159.3516511,0.00038718,120]
[399379709,1766324976041,-2814.68,0.00038718,120]
[399379711,1766324976091,-2814.68,0.00038718,120]
[399379713,1766324976131,-2814.68,0.00038718,120]
[399379715,1766324976168,-2814.68,0.00038718,120]
[399379717,1766324976206,-2814.68,0.00038718,120]
[399379719,1766324976243,-2814.68,0.00038718,120]
[399379721,1766324976283,-2814.68,0.00038718,120]
[399379723,1766324976319,-2814.68,0.00038718,120]
[399379725,1766324976358,-2814.68,0.00038718,120]
[399379727,1766324976395,-2814.68,0.00038718,120]
[399379729,1766324976435,-2814.68,0.00038718,120]
[399379731,1766324976472,-2814.68,0.00038718,120]
[399379733,1766324976509,-2814.68,0.00038718,120]
[399379735,1766324976546,-2814.68,0.00038718,120]
[399379737,1766324976583,-2814.68,0.00038718,120]
[399379739,1766324976620,-2814.68,0.00038718,120]
[399379741,1766324976657,-2814.68,0.00038718,120]
[399379743,1766324976693,-2814.68,0.00038718,120]
[399379745,1766324976729,-2814.68,0.00038718,120]
[399379747,1766324976765,-2814.68,0.00038718,120]
[399379749,1766324976804,-2814.68,0.00038718,120]
[399379751,1766324976841,-2814.68,0.00038718,120]
[399379753,1766324976878,-2814.68,0.00038718,120]
[399379756,1766324976919,-2814.74019312,0.00038718,120]
[399379758,1766324976956,-45365.12237197,0.00038718,120]
[399379812,1766324979179,1502.098877,0.00038716,60]
[399379814,1766324979222,1574.33481034,0.00038716,60]
[399379826,1766324979674,1097.47048274,8.525e-05,2]
[399379827,1766324979698,3902.52951726,8.525e-05,2]
[399379832,1766324979849,500.0,0.00038716,120]
[399379851,1766324980578,319.696028,8.427e-05,2]
[399379858,1766324980803,150.0,1.06e-06,2]
[399379860,1766324980863,150.0,1.06e-06,2]
[399379876,1766324981483,-1014.27,8.3e-05,2]
[399379912,1766324983341,1062.96,8.269e-05,2]
[399379934,1766324984270,-3700.54445474,8.605e-05,2]
[399379935,1766324984287,-10000.01,8.605e-05,2]
[399379937,1766324984302,-10000.01,8.605e-05,2]
[399379938,1766324984318,-10000.01,8.605e-05,2]
[399379942,1766324984447,500.0,0.00031507,60]
[399379943,1766324984493,500.0,0.00031507,60]
[399379945,1766324984542,500.0,0.00031507,30]
[399379966,1766324985411,962.06,8.247e-05,2]
[399380113,1766324991745,309.58086445,8.427e-05,2]
[399380429,1766325006354,-541.0,8.604e-05,2]
[399380431,1766325006386,-315.48781011,8.604e-05,2]
[399380547,1766325011965,220.12435602,8.12e-05,2]
[399380761,1766325022845,-300.0,8.605e-05,2]
[399380762,1766325022875,-300.0,8.605e-05,2]
[399380763,1766325022905,-1200.0,8.605e-05,2]
[399380979,1766325031656,-1249.50691396,8.605e-05,2]
[399380982,1766325031668,-426.34100583,8.605e-05,2]
[399380984,1766325031679,-512.08208021,8.605e-05,2]
[399380989,1766325031718,-962.90483742,8.605e-05,2]
[399381111,1766325037771,-412.0,8.605e-05,2]
[399381112,1766325037783,-614.30606601,8.605e-05,2]
[399381113,1766325037792,-21671.64353399,8.611e-05,2]
[399381115,1766325037829,-1117.6828599,8.611e-05,2]
[399381116,1766325037841,-3330.28168253,8.611e-05,2]
[399381180,1766325040639,-0.00231312,8.611e-05,2]
[399381347,1766325046048,-1844.52,8.611e-05,2]
[399381694,1766325063041,300.0,8.61e-05,2]
[399381978,1766325077844,264.03729777,0.000328,30]
[399381999,1766325078815,1044.05,8.306e-05,2]
[399382399,1766325098683,379.92607804,8.034e-05,2]
[399382446,1766325100827,683.86694047,8.235e-05,2]
[399382477,1766325102423,1215.76344972,8.436e-05,2]
[399382864,1766325122364,300.0,8.61e-05,2]
[399383597,1766325162088,1067.23,8.117e-05,2]
[399383606,1766325162503,2134.46,8.504e-05,2]
[399383753,1766325170191,826.48736999,8.611e-05,2]
[399383992,1766325182752,300.0,8.61e-05,2]
[399384197,1766325193467,-256.46094131,8.611e-05,2]
[399384199,1766325193544,-10000.01,8.611e-05,2]
[399384206,1766325193837,-10000.01,8.611e-05,2]
[399384212,1766325194059,-1414.77092873,8.611e-05,2]
[399384214,1766325194083,-7170.46814254,8.611e-05,2]
[399384219,1766325194314,-376.69189007,8.816e-05,2]
[399384221,1766325194345,-269.68916808,8.816e-05,2]
[399384223,1766325194376,-567.45662911,8.816e-05,2]
[399384224,1766325194406,-483.59603592,8.816e-05,2]
[399384245,1766325195337,500.0,0.00032,30]
[399384380,1766325202288,5000.0,8.816e-05,2]
[399384409,1766325203596,500.0,0.0003287,30]
[399384700,1766325219157,300.0,8.816e-05,2]
[399384896,1766325228694,1305.14255364,8.816e-05,2]
[399384897,1766325228720,3694.85744636,8.816e-05,2]
[399384962,1766325231834,5421.0082286,8.57e-05,2]
[399385220,1766325245395,1145.69,8.115e-05,2]
[399385227,1766325245845,2291.37,8.502e-05,2]
[399385352,1766325252657,5000.0,8.87e-05,2]
[399385429,1766325256580,1463.42928857,0.000327,120]
[399385799,1766325275904,5000.0,8.87e-05,2]
[399385840,1766325277753,1400.0,0.000327,120]
[399386300,1766325304307,0.01,8.028e-05,2]
[399386304,1766325304333,555.23277057,8.028e-05,2]
[399386480,1766325306351,999.43698702,8.234e-05,2]
[399386497,1766325308198,1776.77686582,8.44e-05,2]
[399386500,1766325310380,6668.56337659,8.511e-05,2]
[399386501,1766325310410,10000.01,8.511e-05,2]
[399386502,1766325310445,10000.01,8.511e-05,2]
[399386503,1766325310475,10000.01,8.511e-05,2]
[399386504,1766325310504,10000.01,8.511e-05,2]
[399386505,1766325310532,10000.01,8.511e-05,2]
[399386516,1766325331052,1617.00568142,0.00032876,30]
[399386517,1766325332685,-670.79360496,8.218e-05,2]
[399386518,1766325336339,-453.10035493,8.218e-05,2]
[399386603,1766325352242,-1.07604011,8.218e-05,2]
[399386871,1766325370684,-300.0,8.51e-05,2]
[399386969,1766325377598,-444.43976226,8.511e-05,2]
[399386992,1766325379084,-231.55702865,8.511e-05,2]
[399387023,1766325381036,-248.57427326,8.511e-05,2]
[399387048,1766325382961,-481.48493618,8.511e-05,2]
[399387243,1766325396595,1475.41867882,0.000328,120]
[399387396,1766325406837,334.50885227,8.162e-05,2]
[399387414,1766325408190,382.29583117,8.362e-05,2]
[399387456,1766325410947,1215.4,8.136e-05,2]
[399387617,1766325422514,300.0,8.51e-05,2]
[399387844,1766325438938,10000.0,0.00032877,60]
[399388467,1766325482958,5125.78,0.00032877,60]
[399388596,1766325491775,203.9783034,8.51e-05,2]
[399388608,1766325492560,368.13813171,8.51e-05,2]
[399388647,1766325495536,1238.45,8.165e-05,2]
[399388860,1766325510961,5000.0,8.511e-05,2]
[399389238,1766325536488,357.23888145,8.511e-05,2]
[399389239,1766325536514,4642.76111855,8.511e-05,2]
[399389329,1766325542472,300.0,8.51e-05,2]
[399389545,1766325556542,-6499.20065285,8.511e-05,2]
[399389548,1766325556655,-10000.01,8.511e-05,2]
[399389551,1766325556774,-10000.01,8.511e-05,2]
[399389728,1766325568021,150.0,9e-07,2]
[399389744,1766325568914,150.0,9e-07,2]
[399389763,1766325569955,150.0,9e-07,2]
[399389799,1766325572404,-5000.0,8.511e-05,2]
[399389920,1766325580212,0.01,8.209e-05,2]
[399389922,1766325580242,1236.67,8.209e-05,2]
[399389974,1766325583449,5000.0,8.511e-05,2]
[399390217,1766325599588,-3763.33,8.511e-05,2]
[399390218,1766325599605,-10000.01,8.511e-05,2]
[399390219,1766325599623,-10000.01,8.511e-05,2]
[399390221,1766325599653,-10000.01,8.511e-05,2]
[399390224,1766325599788,-10000.01,8.511e-05,2]
[399390227,1766325599917,-10000.01,8.511e-05,2]
[399390230,1766325600061,-10000.01,8.511e-05,2]
[399390234,1766325600243,-10000.01,8.511e-05,2]
[399390266,1766325602303,300.0,8.51e-05,2]
[399390283,1766325603471,4078.09534519,0.0003287,120]
[399390326,1766325606688,416.93630117,7.913e-05,2]
[399390327,1766325606719,3046.40369883,8.511e-05,2]
[399390329,1766325606744,1953.59630117,8.511e-05,2]
[399390341,1766325607540,650.0,8.51e-05,2]
[399390351,1766325608106,750.48534211,8.065e-05,2]
[399390483,1766325617547,-290.11611043,8.216e-05,2]
[399390539,1766325621285,-206.8269527,8.216e-05,2]
[399390579,1766325624391,-321.88169653,8.216e-05,2]
[399390607,1766325626306,-358.05747073,8.216e-05,2]
[399390706,1766325633094,-158.05747073,8.134e-05,2]
[399390731,1766325635037,-255.81622234,8.134e-05,2]
[399390764,1766325637355,-274.14000007,8.134e-05,2]
[399390790,1766325640367,-266.18946594,8.134e-05,2]
[399390859,1766325645112,-198.1061758,8.134e-05,2]
[399390891,1766325647182,5000.0,8.053e-05,2]
[399390897,1766325647546,-178.12625704,8.134e-05,2]
[399390919,1766325648951,-199.58608623,8.134e-05,2]
[399390962,1766325651870,-312.55713122,8.134e-05,2]
[399391003,1766325654668,-197.79623766,8.134e-05,2]
[399391043,1766325657863,-338.10163802,8.134e-05,2]
[399391109,1766325662590,-192.90163371,8.134e-05,2]
[399391135,1766325664368,-184.55139363,8.134e-05,2]
[399391158,1766325665994,-625.14159937,8.134e-05,2]
[399391204,1766325669452,-333.7274594,8.134e-05,2]
[399391223,1766325670702,5000.0,8.124e-05,2]
[399391255,1766325673002,-350.36085829,8.134e-05,2]
[399391322,1766325678202,-447.65814952,8.134e-05,2]
[399391487,1766325694604,0.01,8.124e-05,2]
[399391488,1766325694628,1025.22407678,8.124e-05,2]
[399391502,1766325709895,461.39976813,7.963e-05,2]
[399391515,1766325752605,-487.18222103,8.134e-05,2]
[399391516,1766325752629,-203.20193369,8.2e-05,2]
[399391517,1766325771384,5000.0,8.124e-05,2]
[399391518,1766325775305,2000.0,0.0003287,60]
[399391519,1766325777118,-414.98146343,8.2e-05,2]
[399391520,1766325779514,5000.0,0.000328,60]
[399391521,1766325780775,-309.78438185,8.2e-05,2]
[399391522,1766325784962,-388.02598996,8.2e-05,2]
[399391526,1766325795668,5000.0,8.19e-05,2]
[399391530,1766325819867,5000.0,8.19e-05,2]
[399391531,1766325843348,-157.31393336,8.216e-05,2]
[399391532,1766325843371,-100.41601943,8.243e-05,2]
[399391533,1766325843656,0.01,8.19e-05,2]
[399391534,1766325843685,4999.99,8.19e-05,2]
[399391536,1766325857737,999.0,0.00032876,120]
[399391537,1766325867893,5000.0,8.233e-05,2]
[399391538,1766325887667,-270.35160461,8.243e-05,2]
[399391539,1766325890324,-398.01602104,8.243e-05,2]
[399391540,1766325891092,5000.0,8.233e-05,2]
[399391541,1766325891963,-61.73593755,8.243e-05,2]
[399391542,1766325891986,-180.59410517,8.367e-05,2]
[399391543,1766325894628,-155.09730309,8.367e-05,2]
[399391544,1766325896646,-372.24902152,8.367e-05,2]
[399391545,1766325898858,-272.31389483,8.367e-05,2]
[399391546,1766325904354,-242.8770303,8.367e-05,2]
[399391547,1766325907238,-196.02,8.415e-05,2]
[399391548,1766325909213,-237.31706667,8.415e-05,2]
[399391549,1766325910599,2000.0,0.0003287,60]
[399391550,1766325910716,-313.43099915,8.415e-05,2]
[399391551,1766325912767,-666.0,8.508e-05,2]
[399391552,1766325912792,-60.26502248,8.509e-05,2]
[399391553,1766325912986,421.53183521,7.895e-05,2]
[399391554,1766325914430,758.75730338,8.107e-05,2]
[399391555,1766325914758,-157.85654673,8.509e-05,2]
[399391556,1766325914782,-145.27600606,8.509e-05,2]
[399391557,1766325914875,5000.0,8.357e-05,2]
[399391558,1766325916325,1348.90187268,8.319e-05,2]
[399391559,1766325936076,302.97,0.00032877,60]
[399391566,1766325965334,7514.0,0.00032876,60]
[399391573,1766325976459,302.97,0.00032877,60]
[399391582,1766325993948,-220.36031465,8.508e-05,2]
[399391584,1766325997425,-371.04981007,8.508e-05,2]
[399391585,1766325997453,-128.95018993,8.51e-05,2]
[399391586,1766325998994,-23.73490852,8.51e-05,2]
[399391587,1766325999025,-500.0,8.51e-05,2]
[399391588,1766325999056,-60.445106,8.51e-05,2]
[399391590,1766326001166,-391.62789792,8.51e-05,2]
[399391592,1766326003998,-47.92699608,8.51e-05,2]
[399391593,1766326004025,-262.0439824,8.51e-05,2]
[399391594,1766326005135,-237.9560176,8.51e-05,2]
[399391595,1766326005160,-57.2280051,8.51e-05,2]
[399391597,1766326006962,-173.3850549,8.51e-05,2]
[399391598,1766326006997,2111.49,8.461e-05,2]
[399391600,1766326010041,-86.22075888,8.51e-05,2]
[399391601,1766326010065,-326.28892647,8.51e-05,2]
[399391602,1766326013326,-173.71107353,8.51e-05,2]
[399391603,1766326013351,-176.58112331,8.51e-05,2]
[399391604,1766326013376,-59.81885858,8.51e-05,2]
[399391606,1766326045726,2000.0,0.0003287,60]
[399391607,1766326052668,-155.47625204,8.51e-05,2]
[399391608,1766326054190,-261.43650454,8.51e-05,2]
[399391609,1766326055825,-23.26838484,8.51e-05,2]
[399391610,1766326055850,-129.82778234,8.51e-05,2]
[399391611,1766326058363,20197.19,0.00032876,120]
[399391612,1766326060066,-192.33602283,8.51e-05,2]
[399391613,1766326089928,2094.31,8.396e-05,2]
[399391614,1766326103662,216.7837987,7.705e-05,2]
[399391615,1766326119014,1123.5216607,0.00032876,120]
[399391616,1766326122200,5000.0,8.51e-05,2]
[399391617,1766326136386,-177.83619483,8.51e-05,2]
[399391618,1766326136420,-300.0,8.51e-05,2]
[399391619,1766326142996,300.0,8.51e-05,2]
[399391620,1766326145946,5000.0,8.51e-05,2]
[399391653,1766326170596,5000.0,8.511e-05,2]
[399391655,1766326173562,2067.66,8.42e-05,2]
[399391657,1766326180793,2000.0,0.0003287,60]
[399391658,1766326194793,2932.35,8.511e-05,2]
[399391659,1766326194822,2067.65,8.511e-05,2]
[399391660,1766326201424,300.0,8.51e-05,2]
[399391661,1766326202749,-272.44066578,8.511e-05,2]
[399391662,1766326203238,300.0,8.51e-05,2]
[399391663,1766326205132,-244.3298509,8.511e-05,2]
[399391664,1766326207197,-200.0,8.511e-05,2]
[399391665,1766326209663,-309.79397595,8.511e-05,2]
[399391666,1766326211181,-206.84041916,8.511e-05,2]
[399391667,1766326212947,-402.65934723,8.511e-05,2]
[399391668,1766326214101,500.0,8.51e-05,2]
[399391669,1766326214899,1813.245417,7.771e-05,2]
[399391670,1766326215067,-214.15,8.511e-05,2]
[399391671,1766326215216,500.0,8.51e-05,2]
[399391672,1766326215851,500.0,8.51e-05,2]
[399391673,1766326216595,500.0,8.51e-05,2]
[399391674,1766326217474,574.12855637,8.51e-05,2]
[399391675,1766326217615,-356.99595016,8.511e-05,2]
[399391676,1766326218887,355.86769567,8.303e-05,2]
[399391677,1766326218924,2589.11833096,8.511e-05,2]
[399391678,1766326218952,2410.88166904,8.511e-05,2]
[399391679,1766326219645,-290.20602405,8.511e-05,2]
[399391680,1766326221154,-500.0104944,8.511e-05,2]
[399391681,1766326222625,-491.10955479,8.511e-05,2]
[399391682,1766326223301,250.0,8.51e-05,2]
[399391683,1766326223951,250.0,8.51e-05,2]
[399391684,1766326225147,-182.48553656,8.511e-05,2]
[399391685,1766326225253,250.0,8.51e-05,2]
[399391686,1766326225738,250.0,8.51e-05,2]
[399391687,1766326226392,250.0,8.51e-05,2]
[399391688,1766326226640,-363.51446344,8.511e-05,2]
[399391689,1766326227091,250.0,8.51e-05,2]
[399391690,1766326228019,250.0,8.51e-05,2]
[399391691,1766326228783,250.0,8.51e-05,2]
[399391692,1766326229450,250.0,8.51e-05,2]
[399391693,1766326230070,250.0,8.51e-05,2]
[399391694,1766326231207,250.0,8.51e-05,2]
[399391982,1766326238756,-1548.83918175,8.511e-05,2]
[399392212,1766326240992,-3e-08,8.511e-05,2]
[399392214,1766326241003,-597.23674431,8.511e-05,2]
[399392444,1766326243177,4839.12833096,8.511e-05,2]
[399392447,1766326243204,160.87166904,8.511e-05,2]
[399392758,1766326246268,-7492.79157002,8.511e-05,2]
[399394007,1766326259888,2091.97,8.376e-05,2]
[399394161,1766326262725,300.0,8.51e-05,2]
[399394163,1766326267084,5000.0,8.511e-05,2]
[399394164,1766326284056,1518.61372993,8.511e-05,2]
[399394165,1766326292482,928.55460103,8.511e-05,2]
[399394166,1766326292509,4071.44539897,8.511e-05,2]
[399394169,1766326315984,2000.0,0.0003287,60]
[399394170,1766326316429,-8718.6938794,8.511e-05,2]
[399394171,1766326316540,-10000.01,8.511e-05,2]
[399394172,1766326316672,-10000.01,8.511e-05,2]
[399394173,1766326317103,5000.0,8.511e-05,2]
[399394174,1766326330090,-156.73722255,7.733e-05,2]
[399394175,1766326330121,-300.0,8.51e-05,2]
[399394176,1766326330209,-4086.5355549,8.511e-05,2]
[399394177,1766326351163,-5000.0,8.327e-05,2]
[399394178,1766326351202,-0.01,8.409e-05,2]
[399394180,1766326370021,-5000.0,8.325e-05,2]
[399394181,1766326389966,0.01,8.399e-05,2]
[399394182,1766326389993,4999.99,8.399e-05,2]
[399394183,1766326399540,209.4069483,7.731e-05,2]
[399394184,1766326405918,359.56834269,8.399e-05,2]
[399394185,1766326409281,430.0,0.00032876,120]
[399394186,1766326414422,4431.04470901,8.399e-05,2]
[399394187,1766326414449,568.95529099,8.399e-05,2]
[399394189,1766326429165,2196.12,8.363e-05,2]
[399394190,1766326431454,4164.71352429,8.399e-05,2]
[399394191,1766326440005,5000.0,8.399e-05,2]
[399394193,1766326451058,2000.0,0.0003287,60]
[399394194,1766326457505,5000.0,8.4e-05,2]
[399394195,1766326465354,0.01,8.4e-05,2]
[399394196,1766326472625,-885.00088218,7.744e-05,2]
[399394197,1766326476487,-307.55956557,7.744e-05,2]
[399394198,1766326479042,-176.18888576,7.744e-05,2]
[399394199,1766326481683,-292.39421842,7.744e-05,2]
[399394200,1766326481827,166.08219,0.00028767,60]
[399394201,1766326484539,-228.37763657,7.744e-05,2]
[399394202,1766326487356,-546.0,7.744e-05,2]
[399394203,1766326489591,-211.31776359,7.744e-05,2]
[399394204,1766326491541,-322.13735799,7.744e-05,2]
[399394205,1766326494032,-300.0,7.744e-05,2]
[399394206,1766326495566,-189.03545971,7.744e-05,2]
[399394207,1766326497054,-235.92379943,7.744e-05,2]
[399394208,1766326498908,-356.1856547,7.744e-05,2]
[399394209,1766326501583,-407.96422972,7.744e-05,2]
[399394210,1766326505080,985.69540016,7.666e-05,2]
[399394211,1766326505199,-183.24628112,7.743e-05,2]
[399394212,1766326506601,-116.75371888,7.743e-05,2]
[399394213,1766326506625,-83.24628112,7.744e-05,2]
[399394214,1766326509642,-378.89501942,7.744e-05,2]
[399394215,1766326512346,-257.18022174,7.744e-05,2]
[399394216,1766326513813,-270.70932363,7.744e-05,2]
[399394217,1766326518769,-174.60807543,7.744e-05,2]
[399394218,1766326521047,-402.03578333,7.744e-05,2]
[399394219,1766326522981,-156.1856547,7.743e-05,2]
[399394221,1766326525121,-26.95040842,7.743e-05,2]
[399394222,1766326525144,-187.13280682,7.744e-05,2]
[399394223,1766326526908,-517.1763299,7.744e-05,2]
[399394224,1766326528584,-180.23486471,7.743e-05,2]
[399394225,1766326528609,-30.28415212,7.744e-05,2]
[399394226,1766326530046,-185.84952116,7.744e-05,2]
[399394227,1766326533109,-393.38593051,7.744e-05,2]
[399394228,1766326535155,-385.76599839,7.744e-05,2]
[399394229,1766326540730,-238.01316205,7.744e-05,2]
[399394230,1766326542965,-298.32210853,7.744e-05,2]
[399394231,1766326545153,-351.67810201,7.744e-05,2]
[399394233,1766326553586,-373.21586627,7.744e-05,2]
[399394235,1766326557079,-371.3576439,7.744e-05,2]
[399394236,1766326560186,-207.17384502,7.744e-05,2]
[399394237,1766326561881,354.17627531,7.743e-05,2]
[399394238,1766326562493,300.0,7.743e-05,2]
[399394239,1766326566098,-379.78237575,7.744e-05,2]
[399394240,1766326567600,-373.98174319,7.744e-05,2]
[399394241,1766326569680,-300.00000566,7.744e-05,2]
[399394242,1766326572183,-287.10778875,7.744e-05,2]
[399394243,1766326574998,-289.10183338,7.744e-05,2]
[399394244,1766326577736,-304.62308825,7.744e-05,2]
[399394245,1766326581125,-287.04156794,7.744e-05,2]
[399394246,1766326585873,2000.0,0.0003287,60]
[399394247,1766326598022,500.0,0.0003287,60]
[399394248,1766326602590,269.101609,0.00030137,120]
[399394250,1766326622671,300.0,7.743e-05,2]
[399394253,1766326650277,500.0,0.00030137,120]
[399394254,1766326651632,500.0,0.00030137,120]
[399394255,1766326653697,500.0,0.00030137,120]
[399394256,1766326655721,500.0,0.00030137,120]
[399394257,1766326656619,500.0,0.00030137,120]
[399394259,1766326657614,500.0,0.00030137,120]
[399394260,1766326658880,2207.4530059,7.019e-05,2]
[399394261,1766326659284,500.0,0.00030137,120]
[399394262,1766326660721,500.0,0.00030137,120]
[399394264,1766326661573,500.0,0.00030137,120]
[399394265,1766326662823,500.0,0.00030137,120]
[399394267,1766326663949,500.0,0.00030137,120]
[399394268,1766326665292,537.85,0.00030137,120]
[399394269,1766326675495,510.1,0.00032877,60]
[399394270,1766326682457,300.0,7.743e-05,2]
[399394271,1766326686580,1200.0,7.743e-05,2]
[399394272,1766326721893,2000.0,0.0003287,60]
[399394274,1766326740914,468.08,0.00032876,60]
[399394275,1766326742911,300.0,7.743e-05,2]
[399394282,1766326806708,529.0,7.744e-05,2]
[399394284,1766326836221,4509.38071879,7.744e-05,2]
[399394285,1766326836248,490.61928121,7.744e-05,2]
[399394286,1766326857236,2000.0,0.0003287,60]
[399394289,1766326858994,-1593.90650335,7.744e-05,2]
[399394290,1766326859178,-10000.01,7.744e-05,2]
[399394291,1766326859368,-10000.01,7.744e-05,2]
[399394292,1766326859400,5000.0,7.744e-05,2]
[399394293,1766326859574,-1624.14480374,7.744e-05,2]
[399394294,1766326859606,-593.13971313,7.821e-05,2]
[399394331,1766326868170,-10000.0,0.00032877,120]
[399394332,1766326868248,-10000.0,0.00032877,120]
[399394335,1766326868326,-1525.48492984,0.000329,120]
[399394336,1766326868404,-446.13423783,0.000329,120]
[399394339,1766326868485,-584.76682955,0.000329,120]
[399394341,1766326868564,-6084.10466779,0.000329,120]
[399394342,1766326868646,-1085.79727242,0.000329,120]
[399394344,1766326868723,-1811.53157364,0.000329,120]
[399394347,1766326868802,-3694.9727704,0.000329,120]
[399394349,1766326868882,-1062.28123118,0.000329,120]
[399394351,1766326868959,-1568.72314491,0.000329,120]
[399394353,1766326869037,-2510.66299105,0.000329,120]
[399394354,1766326869115,-33397.17635788,0.00033,120]
[399394356,1766326869193,-150.0,0.00033,120]
[399394359,1766326869270,-1000.0,0.00033,120]
[399394361,1766326869347,-3419.0,0.000337,60]
[399394362,1766326869418,-10146.0,0.000337,60]
[399394364,1766326869495,-1981.08664187,0.00033821,120]
[399394366,1766326869570,-1525.48492984,0.000339,120]
[399394368,1766326869649,-446.13423783,0.000339,120]
[399394371,1766326869727,-584.76682955,0.000339,120]
[399394373,1766326869812,-6084.10466779,0.000339,120]
[399394375,1766326869904,-1085.79727242,0.000339,120]
[399394377,1766326869984,-1811.53157364,0.000339,120]
[399394379,1766326870057,-3694.9727704,0.000339,120]
[399394381,1766326870131,-1062.28123118,0.000339,120]
[399394383,1766326870202,-1568.72314491,0.000339,120]
[399394385,1766326870274,-2510.66299105,0.000339,120]
[399394387,1766326870341,-150.0,0.00034,120]
[399394389,1766326870413,-178.0,0.00034356,68]
[399394391,1766326870492,-1525.48492984,0.000349,120]
[399394393,1766326870566,-446.13423783,0.000349,120]
[399394395,1766326870636,-584.76682955,0.000349,120]
[399394397,1766326870709,-6084.10466779,0.000349,120]
[399394399,1766326870787,-1085.79727242,0.000349,120]
[399394401,1766326870854,-1811.53157364,0.000349,120]
[399394403,1766326870932,-3694.9727704,0.000349,120]
[399394405,1766326871006,-1062.28123118,0.000349,120]
[399394407,1766326871082,-1568.72314491,0.000349,120]
[399394409,1766326871176,-2510.66299105,0.000349,120]
[399394411,1766326871254,-1000.0,0.00035,120]
[399394413,1766326871329,-5676.20403633,0.00035,120]